[Event "44th Chess Olympiad Open 2022"]
[Site "Chennai"]
[Date "2022.08.03"]
[Round "6.54"]
[White "Gurner, Jem"]
[Black "Junior, Domingos"]
[Result "1/2-1/2"]
[WhiteElo "1800"]
[BlackElo "2107"]
[Annotator "NA RC"]
[PlyCount "77"]
[EventDate "2022.??.??"]
[TimeControl "60"]

1. d4 {[%emt 0:00:02]} Nf6 {[%emt 0:00:01]} 2. c4 {[%emt 0:00:06]} e6 {[%emt 0:
00:00]} 3. Nf3 {[%emt 0:00:04]} b6 {[%emt 0:00:06]} 4. g3 {[%emt 0:00:04]} Bb7
{[%emt 0:00:09]} 5. Bg2 {[%emt 0:00:06]} Be7 {[%emt 0:00:04]} 6. O-O {[%emt 0:
00:00]} O-O {[%emt 0:00:05]} 7. Re1 {[%emt 0:00:05]} d5 {[%emt 0:00:19]} 8.
cxd5 {[%emt 0:00:14]} exd5 {[%emt 0:00:08]} 9. Nc3 {[%emt 0:00:10]} Nbd7 {
[%emt 0:01:32]} 10. Bf4 {[%emt 0:00:41]} Ne4 {[%emt 0:06:00]} 11. Rc1 {[%emt 0:
00:00]} Nxc3 {[%emt 0:00:47]} 12. Rxc3 {[%emt 0:00:25]} c6 {[%emt 0:03:28]} 13.
a3 {[%emt 0:01:20]} Re8 {[%emt 0:01:13]} 14. h4 {[%emt 0:11:19]} b5 {[%emt 0:
00:00]} 15. Rc1 {[%emt 0:05:21]} Bf6 {[%emt 0:01:59]} 16. Qd3 {[%emt 0:10:27]}
Nb6 {[%emt 0:04:44]} 17. Ng5 {[%emt 0:17:48]} g6 {[%emt 0:02:06]} 18. b3 {
[%emt 0:04:17]} Qe7 {[%emt 0:02:15]} 19. e4 {[%emt 0:04:06]} h6 {[%emt 0:10:56]
} 20. Nh3 {[%emt 0:03:37]} dxe4 {[%emt 0:01:51]} 21. Bxe4 {[%emt 0:01:39]} Qd7
{[%emt 0:00:53]} 22. Bxg6 {[%emt 0:08:51]} Rxe1+ {[%emt 0:02:01]} 23. Rxe1 {
[%emt 0:00:05]} fxg6 {[%emt 0:00:34]} 24. Qxg6+ {[%emt 0:00:16]} Qg7 {[%emt 0:
00:00]} 25. Qh5 {[%emt 0:00:42]} Qf7 {[%emt 0:03:47]} 26. Qxh6 {[%emt 0:02:50]}
Bg7 {[%emt 0:00:03]} 27. Qg5 {[%emt 0:01:28]} Re8 {[%emt 0:08:22]} 28. Rxe8+ {
[%emt 0:01:04]} Qxe8 {[%emt 0:00:02]} 29. Be5 {[%emt 0:00:13]} Qf8 {[%emt 0:00:
00]} 30. Nf4 {[%emt 0:00:53]} Nd7 {[%emt 0:02:36]} 31. h5 {[%emt 0:06:16]} Nxe5
{[%emt 0:05:40]} 32. dxe5 {[%emt 0:00:07]} Qxa3 {[%emt 0:01:10]} 33. h6 {
[%emt 0:05:39]} Qa1+ {[%emt 0:00:11]} 34. Kh2 {[%emt 0:00:06]} Qxe5 {[%emt 0:
00:00]} 35. Qd8+ {[%emt 0:01:11]} Kh7 {[%emt 0:01:13]} 36. Qd7 {[%emt 0:02:35]}
Qd4 {[%emt 0:04:27]} 37. Qxb7 {[%emt 0:02:51]} Qxf2+ {[%emt 0:00:56]} 38. Kh3 {
[%emt 0:00:19]} Qf1+ {[%emt 0:05:56]} 39. Kh2 {[%emt 0:08:38]} 1/2-1/2

[Event "44th Chess Olympiad Open 2022"]
[Site "Chennai"]
[Date "2022.08.03"]
[Round "6.55"]
[White "Makoto, Rodwell"]
[Black "Blackman, Justin"]
[Result "1/2-1/2"]
[WhiteElo "2346"]
[BlackElo "2195"]
[Annotator "TA"]
[PlyCount "142"]
[EventDate "2022.??.??"]
[TimeControl "60"]

{[%evp 18,142,10,15,10,12,15,22,18,8,4,4,6,8,4,6,8,0,0,0,0,4,6,0,0,0,0,-47,0,0,
0,0,0,-22,-16,-26,-22,-98,-27,-28,-36,-68,-68,-144,-153,-166,-166,-177,-171,
-165,-157,-142,-144,-175,-160,-175,-184,-171,-152,-241,-231,-269,-259,-252,
-193,-227,-216,-251,-218,-203,-180,-180,-180,-210,-210,-488,-470,-462,-462,
-460,-381,-381,-329,-711,-717,-717,-717,-711,-711,-702,-568,-472,-13,-13,-13,
-13,-13,-13,-13,-54,-166,-197,0,0,0,0,0,0,0,0,0,0,0,0,0,0,0,0,0,0,0,0,0,0,0,0,
0]} 1. Nf3 {[%emt 0:01:57]} Nf6 {[%emt 0:00:09]} 2. c4 {[%emt 0:00:29]} e6 {
[%emt 0:00:07]} 3. g3 {[%emt 0:00:19]} d5 {[%emt 0:00:07]} 4. d4 {[%emt 0:00:
00]} Be7 {[%emt 0:00:10]} 5. Bg2 {[%emt 0:00:25]} O-O {[%emt 0:00:08]} 6. O-O {
[%emt 0:00:47]} dxc4 {[%emt 0:00:06]} 7. Qc2 {[%emt 0:00:10]} a6 {[%emt 0:00:
00]} 8. a4 {[%emt 0:00:13]} Bd7 {[%emt 0:00:08]} 9. Bg5 {[%emt 0:00:19]} Bc6 {
[%emt 0:00:23]} 10. Qxc4 {[%emt 0:00:46]} Nbd7 {[%emt 0:00:10] E05: Open
Catalan: 5 Nf3 Be7.} 11. Rd1 {[%emt 0:00:43]} h6 {[%emt 0:00:13]} 12. Bxf6 {
[%emt 0:01:15]} Nxf6 {[%emt 0:00:07]} 13. Nc3 {[%emt 0:00:55]} Bd5 {[%emt 0:00:
00]} 14. Qd3 {[%emt 0:00:57]} Bxf3 {[%emt 0:00:07]} 15. Bxf3 {[%emt 0:00:27]}
c6 {[%emt 0:00:06]} 16. e3 {[%emt 0:01:47]} Qa5 {[%emt 0:00:39]} 17. h4 {
[%emt 0:01:08] [#]} Rfd8 $146 {[%emt 0:00:11]} ({Predecessor:} 17... Rad8 18.
Qc2 e5 19. dxe5 Qxe5 20. Qb3 Qc7 21. a5 Rxd1+ 22. Rxd1 Rd8 23. Rxd8+ Bxd8 {
1-0 (46) Michaelides,K (2149)-Melas,R (2117) Larnaca 2018}) 18. Qc2 {[%emt 0:
00:00]} Rd7 {[%emt 0:00:24]} 19. Ne2 {[%emt 0:03:50]} Rad8 {[%emt 0:00:40]} 20.
Nc1 {[%emt 0:04:01]} e5 {[%emt 0:08:00]} 21. Nb3 {[%emt 0:02:43]} Qc7 {[%emt 0:
00:00]} 22. Qc3 {[%emt 0:07:36]} (22. dxe5 $11 {might be stronger.} Qxe5 23.
Rxd7 Rxd7 24. Qc3) 22... exd4 {[%emt 0:05:42]} (22... e4 $15 {is more
appropriate.} 23. Bg2 Nd5) 23. Rxd4 $11 {[%emt 0:00:32]} Rxd4 {[%emt 0:00:21]}
24. Nxd4 {[%emt 0:00:09]} Nd5 {[%emt 0:00:27]} 25. Bxd5 {[%emt 0:11:41]} Rxd5 {
[%emt 0:00:10]} 26. e4 {[%emt 0:00:43]} Rd7 {[%emt 0:06:41][%cal Yd5d7,Yd7d2,
Yd2b2] ...Bf6 is the strong threat.} 27. Nf5 {[%emt 0:02:00]} (27. Nf3 $11)
27... Bf8 {[%emt 0:10:43]} (27... Bf6 $1 $17 {[%cal Rf6c3]} 28. Qc2 (28. Nxh6+
$2 Kh7 $19) 28... Qb6) 28. h5 {[%emt 0:01:42]} Qd8 {[%emt 0:00:12]} 29. Qf3 {
[%emt 0:01:09] Against Rd1+} Rd2 {[%emt 0:01:47]} 30. Re1 {[%emt 0:21:03]} ({
White should try} 30. b3 $15) 30... Rxb2 $17 {[%emt 0:07:09]} 31. e5 {[%emt 0:
23:57]} Bc5 {[%emt 0:22:16]} 32. Rf1 {[%emt 0:01:35]} Qd2 {[%emt 0:00:00]
Against Qc3} 33. Kg2 {[%emt 0:03:48]} Qd5 {[%emt 0:05:58] Prevents Nd6.} 34.
Qxd5 {[%emt 0:00:03]} cxd5 {[%emt 0:00:07] Endgame KRB-KRN} 35. Kf3 {[%emt 0:
00:20]} a5 {[%emt 0:05:19]} 36. Ne3 {[%emt 0:02:17]} Rb3 {[%emt 0:00:00]} 37.
Ke2 {[%emt 0:01:39]} d4 {[%emt 0:03:22]} 38. Nc4 {[%emt 0:00:35]} (38. Nd5 $17)
38... b6 $19 {[%emt 0:04:43]} 39. Ra1 {[%emt 0:02:50]} Kf8 {[%emt 0:05:08]} 40.
Nd2 {[%emt 0:00:34]} Rb2 {[%emt 0:00:52]} 41. Kd3 {[%emt 0:00:00]} Ke7 $1 {
[%emt 0:00:18]} 42. Nf3 {[%emt 0:08:23]} Rxf2 {[%emt 0:13:40]} 43. Nxd4 {
[%emt 0:00:17]} Bxd4 {[%emt 0:00:34]} 44. Kxd4 {[%emt 0:00:06] KR-KR} Rb2 {
[%emt 0:00:09] Against Rb1. Threatens to win with ...Ke6.} 45. Kd5 {[%emt 0:01:
37]} f6 {[%emt 0:14:34]} 46. exf6+ $2 {[%emt 0:10:42]} (46. Rc1 {is a better
defense.} fxe5 47. Kxe5) 46... Kxf6 {[%emt 0:00:09]} 47. Rf1+ {[%emt 0:00:11]}
Kg5 {[%emt 0:00:15]} 48. Rf7 {[%emt 0:00:08]} Kxh5 {[%emt 0:00:00]} 49. Rxg7 {
[%emt 0:00:03]} Rb4 {[%emt 0:00:49] Inhibits g4+.} 50. Rb7 $2 {[%emt 0:03:59]}
(50. Ke5 Rxa4 51. Kf5) 50... Rxa4 {[%emt 0:01:03]} 51. Rxb6 {[%emt 0:00:15]}
Rg4 {[%emt 0:00:04]} 52. Rb3 {[%emt 0:00:37]} Rg5+ {[%emt 0:00:00]} 53. Ke4 {
[%emt 0:03:15] [#]} Kg4 $1 {[%emt 0:00:07]} 54. Ra3 {[%emt 0:00:00]} Kh3 $2 {
[%emt 0:05:40]} ({Black should play} 54... Rf5 $19 55. Rc3 Rf6) 55. Ra1 $1 $11
{[%emt 0:01:27]} Kxg3 {[%emt 0:00:19]} 56. Rh1 $1 {[%emt 0:00:00]} Rg4+ {
[%emt 0:02:01]} 57. Ke3 {[%emt 0:00:42]} Rh4 {[%emt 0:00:13]} 58. Rg1+ {
[%emt 0:00:29]} Kh2 $1 {[%emt 0:00:13]} 59. Rg6 {[%emt 0:00:38] [#]} h5 $2 {
[%emt 0:01:01]} (59... a4 $1 $19 {White must now prevent ...Rh3+.} 60. Kf2 Rh5)
60. Rg5 $1 {[%emt 0:01:28] The position is equal.} a4 {[%emt 0:06:03]} 61. Kf2
$1 {[%emt 0:00:54]} Rf4+ {[%emt 0:00:24]} 62. Ke3 {[%emt 0:00:14]} Rb4 {
[%emt 0:00:55] Strongly threatening ...h4.} 63. Rxh5+ {[%emt 0:00:14]} Kg2 {
[%emt 0:00:19]} 64. Kd3 {[%emt 0:00:27]} Rg4 {[%emt 0:00:44]} 65. Kc3 {[%emt 0:
00:00]} Kf3 {[%emt 0:00:09]} 66. Kb2 $1 {[%emt 0:00:26]} Ke3 {[%emt 0:00:17]}
67. Ka3 {[%emt 0:00:05]} Kd3 {[%emt 0:00:20]} 68. Rh3+ {[%emt 0:00:32]} Kc2 {
[%emt 0:00:11]} 69. Rh2+ {[%emt 0:00:13]} Kd3 {[%emt 0:00:13]} 70. Rh3+ {
[%emt 0:00:12]} Kc2 {[%emt 0:00:07]} 71. Rh2+ {[%emt 0:00:24]} Kd3 {[%emt 0:00:
00] White happily takes the draw. Weighted Error Value: White=0.24 (precise) /
Black=0.25 (precise)} 1/2-1/2

[Event "44th Chess Olympiad Open 2022"]
[Site "Chennai"]
[Date "2022.08.03"]
[Round "6.55"]
[White "Zhemba, Jemusse"]
[Black "Parsons, Justin"]
[Result "1-0"]
[WhiteElo "2162"]
[BlackElo "1749"]
[Annotator "NA RC"]
[PlyCount "75"]
[EventDate "2022.??.??"]
[TimeControl "60"]

1. Nf3 {[%emt 0:00:06]} d5 {[%emt 0:00:22]} 2. g3 {[%emt 0:00:10]} g6 {[%emt 0:
00:00]} 3. d4 {[%emt 0:00:12]} Bg7 {[%emt 0:00:44]} 4. Bg2 {[%emt 0:02:58]} Nf6
{[%emt 0:01:05]} 5. c4 {[%emt 0:00:20]} c6 {[%emt 0:02:04]} 6. Nc3 {[%emt 0:00:
00]} O-O {[%emt 0:01:10]} 7. cxd5 {[%emt 0:06:09]} cxd5 {[%emt 0:05:50]} 8. Qb3
{[%emt 0:00:12]} Nc6 {[%emt 0:01:36]} 9. Bg5 {[%emt 0:00:36]} e6 {[%emt 0:00:
00]} 10. O-O {[%emt 0:02:42]} Na5 {[%emt 0:04:56]} 11. Qc2 {[%emt 0:00:56]} Bd7
{[%emt 0:01:14]} 12. e4 {[%emt 0:01:58]} Qb6 {[%emt 0:04:31]} 13. Bxf6 {
[%emt 0:02:35]} Bxf6 {[%emt 0:00:06]} 14. exd5 {[%emt 0:00:18]} Rac8 {[%emt 0:
00:00]} 15. Ne5 {[%emt 0:01:47]} Bxe5 {[%emt 0:01:57]} 16. dxe5 {[%emt 0:01:13]
} exd5 {[%emt 0:00:12]} 17. Bxd5 {[%emt 0:00:59]} Bf5 {[%emt 0:01:50]} 18. Qe2
{[%emt 0:00:47]} Nc6 {[%emt 0:02:31]} 19. Rad1 {[%emt 0:04:37]} Rfe8 {[%emt 0:
00:00]} 20. Bxc6 {[%emt 0:00:29]} Rxc6 {[%emt 0:01:27]} 21. Nd5 {[%emt 0:01:54]
} Qc5 {[%emt 0:05:30]} 22. b4 {[%emt 0:00:52]} Qf8 {[%emt 0:00:06]} 23. Qb2 {
[%emt 0:00:17]} Ree6 {[%emt 0:04:47]} 24. Nf6+ {[%emt 0:06:12]} Kg7 {[%emt 0:
00:00]} 25. Rd2 {[%emt 0:01:31]} h5 {[%emt 0:03:26]} 26. Rfd1 {[%emt 0:00:14]}
Qb8 {[%emt 0:01:12]} 27. b5 {[%emt 0:03:17]} Rc4 {[%emt 0:02:26]} 28. Rd6 {
[%emt 0:00:48]} Rc2 {[%emt 0:02:31]} 29. Qd4 {[%emt 0:00:49]} Rxa2 {[%emt 0:00:
00]} 30. h3 {[%emt 0:01:04]} Re2 {[%emt 0:04:30]} 31. g4 {[%emt 0:01:24]} hxg4
{[%emt 0:00:35]} 32. hxg4 {[%emt 0:00:16]} Bc2 {[%emt 0:12:44]} 33. Rxe6 {
[%emt 0:00:57]} fxe6 {[%emt 0:05:21]} 34. Qd7+ {[%emt 0:01:16]} Kh6 {[%emt 0:
00:00]} 35. f4 {[%emt 0:00:23]} g5 {[%emt 0:01:19]} 36. Qxe6 {[%emt 0:01:38]}
Bg6 {[%emt 0:02:43]} 37. Ng8+ {[%emt 0:00:25]} Kh7 {[%emt 0:02:05]} 38. Rd7+ {
[%emt 0:00:13]} 1-0

[Event "44th Chess Olympiad Open 2022"]
[Site "Chennai"]
[Date "2022.08.03"]
[Round "6.55"]
[White "Edwards, Emar"]
[Black "Masango, Spencer"]
[Result "0-1"]
[WhiteElo "1695"]
[BlackElo "2170"]
[Annotator "NA RC"]
[PlyCount "70"]
[EventDate "2022.??.??"]
[TimeControl "60"]

1. e4 {[%emt 0:00:04]} e5 {[%emt 0:00:36]} 2. Nf3 {[%emt 0:00:06]} Nc6 {
[%emt 0:00:06]} 3. Bc4 {[%emt 0:00:26]} Bc5 {[%emt 0:00:11]} 4. c3 {[%emt 0:00:
00]} Nf6 {[%emt 0:00:07]} 5. d4 {[%emt 0:00:15]} exd4 {[%emt 0:00:10]} 6. b4 {
[%emt 0:01:07]} Bb6 {[%emt 0:02:00]} 7. e5 {[%emt 0:00:56]} d5 {[%emt 0:01:08]}
8. exf6 {[%emt 0:00:53]} dxc4 {[%emt 0:00:08]} 9. Qe2+ {[%emt 0:00:48]} Be6 {
[%emt 0:00:26]} 10. b5 {[%emt 0:01:40]} d3 {[%emt 0:06:08]} 11. fxg7 {[%emt 0:
00:00]} Rg8 {[%emt 0:00:17]} 12. Qe4 {[%emt 0:00:15]} Ne7 {[%emt 0:01:08]} 13.
Qxh7 {[%emt 0:02:29]} Bf5 {[%emt 0:04:28]} 14. Qh6 {[%emt 0:00:14]} Qd6 {
[%emt 0:00:47]} 15. Qxd6 {[%emt 0:05:42]} cxd6 {[%emt 0:00:06]} 16. Bh6 {
[%emt 0:00:57]} Be6 {[%emt 0:01:21]} 17. Nh4 {[%emt 0:11:58]} Rc8 {[%emt 0:00:
00]} 18. O-O {[%emt 0:04:44]} Rc5 {[%emt 0:00:36]} 19. Bf4 {[%emt 0:09:09]} Rh5
{[%emt 0:00:41]} 20. Nf3 {[%emt 0:13:23]} Kd7 {[%emt 0:01:51]} 21. Nbd2 {
[%emt 0:01:26]} Rxg7 {[%emt 0:01:05]} 22. Ne4 {[%emt 0:04:50]} Rf5 {[%emt 0:00:
00]} 23. Bg3 {[%emt 0:02:15]} Nd5 {[%emt 0:03:05]} 24. Nxd6 {[%emt 0:11:22]}
Rxf3 {[%emt 0:00:48]} 25. gxf3 {[%emt 0:01:15]} Rxg3+ {[%emt 0:00:35]} 26. hxg3
{[%emt 0:00:06]} Kxd6 {[%emt 0:00:07]} 27. Rfc1 {[%emt 0:08:35]} Ba5 {[%emt 0:
00:00]} 28. a4 {[%emt 0:06:53]} Nxc3 {[%emt 0:00:35]} 29. Kg2 {[%emt 0:00:26]}
d2 {[%emt 0:01:02]} 30. Rh1 {[%emt 0:02:12]} Ne2 {[%emt 0:01:09]} 31. Rh4 {
[%emt 0:03:26]} c3 {[%emt 0:00:40]} 32. b6 {[%emt 0:03:08]} axb6 {[%emt 0:00:
00]} 33. Rhh1 {[%emt 0:02:10]} c2 {[%emt 0:00:17]} 34. f4 {[%emt 0:00:41]} c1=Q
{[%emt 0:00:21]} 35. Raxc1 {[%emt 0:00:12]} dxc1=Q {[%emt 0:00:22]} 0-1

[Event "44th Chess Olympiad Open 2022"]
[Site "Chennai"]
[Date "2022.08.03"]
[Round "6.55"]
[White "Roachford, Adam"]
[Black "Mwadzura, Roy"]
[Result "0-1"]
[WhiteElo "1443"]
[BlackElo "2093"]
[Annotator "NA RC"]
[PlyCount "104"]
[EventDate "2022.??.??"]
[TimeControl "60"]

1. e4 {[%emt 0:00:04]} e6 {[%emt 0:00:05]} 2. d4 {[%emt 0:00:28]} d5 {[%emt 0:
00:00]} 3. Nc3 {[%emt 0:00:12]} Bb4 {[%emt 0:00:07]} 4. e5 {[%emt 0:00:16]} Ne7
{[%emt 0:00:06]} 5. Qg4 {[%emt 0:00:55]} c5 {[%emt 0:01:06]} 6. a3 {[%emt 0:00:
00]} Bxc3+ {[%emt 0:01:10]} 7. bxc3 {[%emt 0:00:11]} Qc7 {[%emt 0:00:35]} 8.
Be3 {[%emt 0:14:27]} Nbc6 {[%emt 0:02:30]} 9. Bb5 {[%emt 0:00:48]} cxd4 {
[%emt 0:00:49]} 10. Bxd4 {[%emt 0:02:21]} O-O {[%emt 0:00:44]} 11. Ne2 {
[%emt 0:02:20]} Nxe5 {[%emt 0:01:51]} 12. Qg3 {[%emt 0:03:06]} f6 {[%emt 0:00:
00]} 13. h4 {[%emt 0:02:34]} Nf5 {[%emt 0:01:16]} 14. Qf4 {[%emt 0:00:44]} a6 {
[%emt 0:01:26]} 15. Bd3 {[%emt 0:00:31]} Nxd3+ {[%emt 0:00:09]} 16. cxd3 {
[%emt 0:00:37]} e5 {[%emt 0:00:09]} 17. Qh2 {[%emt 0:01:08]} Nxd4 {[%emt 0:00:
00]} 18. cxd4 {[%emt 0:00:28]} Qa5+ {[%emt 0:00:06]} 19. Kf1 {[%emt 0:01:01]}
Bf5 {[%emt 0:00:19]} 20. Qg3 {[%emt 0:02:32]} Qd2 {[%emt 0:00:27]} 21. Rh3 {
[%emt 0:06:05]} Bxh3 {[%emt 0:00:47]} 22. gxh3 {[%emt 0:00:01]} Rfe8 {[%emt 0:
00:00]} 23. Rb1 {[%emt 0:09:23]} b5 {[%emt 0:01:25]} 24. h5 {[%emt 0:00:20]}
Rac8 {[%emt 0:01:12]} 25. Qf3 {[%emt 0:00:34]} e4 {[%emt 0:01:06]} 26. dxe4 {
[%emt 0:00:17]} Rxe4 {[%emt 0:00:30]} 27. h6 {[%emt 0:03:21]} Qxh6 {[%emt 0:00:
00]} 28. Qf5 {[%emt 0:00:54]} Rce8 {[%emt 0:02:03]} 29. Nc3 {[%emt 0:05:44]}
Rxd4 {[%emt 0:07:17]} 30. Nxd5 {[%emt 0:00:52]} Qg6 {[%emt 0:06:20]} 31. Qxg6 {
[%emt 0:04:05]} hxg6 {[%emt 0:00:04]} 32. Nc7 {[%emt 0:00:47]} Rc8 {[%emt 0:00:
00]} 33. Nxa6 {[%emt 0:00:46]} Ra4 {[%emt 0:00:05]} 34. Nb4 {[%emt 0:00:48]}
Rxa3 {[%emt 0:00:05]} 35. Nd5 {[%emt 0:00:19]} Rc5 {[%emt 0:01:17]} 36. Ne3 {
[%emt 0:00:51]} Ra2 {[%emt 0:00:15]} 37. Rd1 {[%emt 0:00:59]} b4 {[%emt 0:00:
00]} 38. Rd8+ {[%emt 0:00:36]} Kh7 {[%emt 0:00:08]} 39. Rd7 {[%emt 0:02:27]} b3
{[%emt 0:01:00]} 40. Ng4 {[%emt 0:00:28]} b2 {[%emt 0:02:46]} 41. Nxf6+ {
[%emt 0:34:38]} Kh6 {[%emt 0:30:06]} 42. Ng4+ {[%emt 0:00:47]} Kg5 {[%emt 0:00:
00]} 43. Kg2 {[%emt 0:00:37]} b1=Q {[%emt 0:00:32]} 44. Rd4 {[%emt 0:00:45]}
Qb7+ {[%emt 0:01:17]} 45. Kh2 {[%emt 0:01:03]} Qf3 {[%emt 0:00:41]} 46. h4+ {
[%emt 0:01:57]} Kf5 {[%emt 0:00:12]} 47. Rd3 {[%emt 0:02:29]} Rxf2+ {[%emt 0:
00:00]} 48. Nxf2 {[%emt 0:00:15]} Qxf2+ {[%emt 0:00:04]} 49. Kh3 {[%emt 0:00:
00]} Qf1+ {[%emt 0:00:06]} 50. Kh2 {[%emt 0:00:12]} Rc2+ {[%emt 0:00:11]} 51.
Rd2 {[%emt 0:00:20]} Rxd2+ {[%emt 0:00:07]} 52. Kg3 {[%emt 0:00:06]} Qd3# {
[%emt 0:00:10]} 0-1

[Event "44th Chess Olympiad Open 2022"]
[Site "Chennai"]
[Date "2022.08.03"]
[Round "6.56"]
[White "Brahami, Lamine"]
[Black "Amini, Habibullah"]
[Result "1-0"]
[WhiteElo "2189"]
[BlackElo "2035"]
[Annotator "TA"]
[PlyCount "81"]
[EventDate "2022.??.??"]
[TimeControl "60"]

{[%evp 16,81,67,56,83,78,112,49,59,56,130,116,119,105,146,104,110,89,114,93,
134,69,133,121,116,0,169,-62,165,229,1130,1258,1206,1206,1190,1176,1100,703,
1940,1930,29973,29974,29974,8148,29975,29976,29976,29977,29973,29974,29982,
29983,29983,29984,29984,29985,29987,29988,29991,29992,29992,29992,29994,29991,
29991,29992,29992,29990]} 1. d4 {[%emt 0:00:04]} Nf6 {[%emt 0:00:07]} 2. c4 {
[%emt 0:00:17]} g6 {[%emt 0:00:15]} 3. Nc3 {[%emt 0:00:49]} Bg7 {[%emt 0:00:14]
} 4. e4 {[%emt 0:03:57]} d6 {[%emt 0:00:06]} 5. f3 {[%emt 0:01:24]} O-O {
[%emt 0:00:29]} 6. Be3 {[%emt 0:00:06]} e5 {[%emt 0:00:12]} 7. Nge2 {[%emt 0:
00:00]} Nc6 {[%emt 0:03:16]} 8. d5 {[%emt 0:00:55]} Ne7 {[%emt 0:03:36]} 9. g4
{[%emt 0:03:38]} a6 {[%emt 0:01:45] E85: King's Indian: Sämisch: 6...e5.} 10.
Ng3 {[%emt 0:01:02]} Ne8 {[%emt 0:08:33] [#]} 11. g5 $146 {[%emt 0:07:54]
White is more active.} (11. Qd2 $16) ({Predecessor:} 11. Bd3 f5 12. gxf5 gxf5
13. exf5 Nxf5 14. Bf2 Nd4 15. Bxd4 exd4 16. Nce4 Qh4 17. Qe2 {0-1 (38)
Heinechen,J (2000)-Melian,J (1576) Asuncion 2018}) 11... c5 {[%emt 0:07:33]
White is slightly better.} 12. Qd2 {[%emt 0:04:34]} Nc7 {[%emt 0:10:04]} (12...
f5 $14) 13. h4 $1 $16 {[%emt 0:04:11][%cal Yh2h4,Yh4h5]} b5 {[%emt 0:00:00] [#]
} 14. h5 $1 {[%emt 0:03:36]} (14. cxb5 f5 $14) 14... bxc4 {[%emt 0:00:00]} 15.
a4 {[%emt 0:12:59] Against Nb5} Ne8 {[%emt 0:14:15]} 16. Qh2 {[%emt 0:06:52]}
Rb8 {[%emt 0:07:01]} 17. Bxc4 {[%emt 0:09:29]} Qa5 {[%emt 0:00:00]} 18. O-O-O {
[%emt 0:06:09]} (18. hxg6 $16 fxg6 19. Rc1 (19. Qxh7+ Kf7 $14)) 18... Bd7 {
[%emt 0:19:36]} (18... Qb4 $14 19. Bd3 (19. hxg6 fxg6 20. Bd3 Rxf3 $11) 19...
f5 20. gxf6 (20. hxg6 hxg6 21. exf5 Nxf5 $11) 20... Rxf6) 19. hxg6 $40 {
[%emt 0:13:27] White has strong attack.} fxg6 {[%emt 0:00:11]} 20. f4 {[%emt 0:
00:56]} (20. Qxh7+ Kf7 21. Qh2 Nc8 $14) (20. Kc2 $16) 20... exf4 $2 {[%emt 0:
09:18]} (20... Rf7 $11 21. f5 (21. Qxh7+ Kf8 $17) 21... gxf5 22. exf5 (22.
Qxh7+ Kf8 $17) 22... Nxf5) 21. Qxh7+ $18 {[%emt 0:02:25]} Kf7 {[%emt 0:00:01] 
[#] Loses the game.} 22. e5 $1 {[%emt 0:02:50][%cal Ye4e5,Ye5e6,Ye6d7]
Threatening mate with e6+. Really sharp!} ({And not} 22. Bxf4 Rh8 23. Qxh8 Bxh8
24. Rxh8 Qb4 $15) 22... Rh8 $2 {[%emt 0:01:14]} (22... Nc8) 23. e6+ {[%emt 0:
00:21]} Kf8 {[%emt 0:03:42]} 24. Qxh8+ {[%emt 0:00:34]} Bxh8 {[%emt 0:00:02]}
25. Rxh8+ {[%emt 0:00:09]} Ng8 {[%emt 0:00:59]} 26. exd7 {[%emt 0:02:46]} Nc7 {
[%emt 0:05:01]} 27. Bxf4 {[%emt 0:01:35]} Ke7 {[%emt 0:00:00]} 28. Rh7+ {
[%emt 0:01:40]} Kd8 {[%emt 0:00:02]} 29. Rg7 {[%emt 0:00:27]} Qb4 {[%emt 0:01:
10]} 30. Rxg8+ {[%emt 0:00:21] White mates.} Kxd7 {[%emt 0:00:00]} 31. Rxb8 {
[%emt 0:00:05]} Qxb8 {[%emt 0:00:16]} 32. Nge4 {[%emt 0:00:30]} Qb4 {[%emt 0:
01:49]} 33. Be2 {[%emt 0:00:32]} Ne8 {[%emt 0:01:15]} 34. Bxa6 {[%emt 0:00:31]}
Nc7 {[%emt 0:00:20]} 35. Be2 {[%emt 0:00:29]} Qb8 {[%emt 0:00:00]} 36. Bg4+ {
[%emt 0:00:13]} Ke8 {[%emt 0:00:16]} 37. Bxd6 {[%emt 0:00:21]} Qb6 {[%emt 0:00:
11]} 38. Bxc5 {[%emt 0:00:58]} Qb3 {[%emt 0:00:15]} 39. d6 {[%emt 0:01:16]
[%cal Yd5d6,Yd6d7]} Ne6 {[%emt 0:01:01]} 40. d7+ {[%emt 0:00:23]} Kd8 {[%emt 0:
00:21]} 41. Be7+ {[%emt 0:30:42] Weighted Error Value: White=0.16 (very
precise) /Black=0.87} 1-0